Workbook

Sheet (1)
B1: known to be uniformly distributed
B2: a | C2: 1
B3: b | C3: 1.5
B4: ="f(x) = 1/("&C3&" - "&C2&") = "&1/(C3-C2)&" = height = h" -> f(x) = 1/(1.5 - 1) = 2 = height = h | C4: =1/(C3-C2) -> 2
B5: Area = 1/(b-a)*(x2-x1)
B6: width = b - a = | C6: =C3-C2 -> 0.5
B7: f(x)
A8: a
B9: 2
B10: 1
B11: 0 | C11: 0.25 | D11: 0.5 | E11: 0.75 | F11: 1 | G11: 1.25 | H11: 1.5 | I11: 1.75 | J11: 2 | K11: 2.25 | L11: x
A13: b | B13: P(x = 1.25) | C13: 0 | D13: a line contains no area
A14: c | B14: x1 | C14: 1
B15: x2 | C15: 1.25
B16: ="P("&C14&"<=x<="&C15&") = h*w = 1/(b-a)*(x2 - x1)" -> P(1<=x<=1.25) = h*w = 1/(b-a)*(x2 - x1) | C16: =$C$4*(C15-C14) -> 0.5 | F16: ="** Note: because lines have no area: P("&C14&"<=x<="&C15&")"&" = P("&C14&"<x<"&C15&")" -> ** Note: because lines have no area: P(1<=x<=1.25) = P(1<x<1.25)
A17: d | B17: x1 | C17: 1.2
B18: x2 | C18: 1.5
B19: ="P("&C17&"<x<"&C18&") = h*w = 1/(b-a)*(x2 - x1)" -> P(1.2<x<1.5) = h*w = 1/(b-a)*(x2 - x1) | C19: =$C$4*(C18-C17) -> 0.6 | F19: ="** Note: because lines have no area: P("&C17&"<=x<="&C18&")"&" = P("&C17&"<x<"&C18&")" -> ** Note: because lines have no area: P(1.2<=x<=1.5) = P(1.2<x<1.5)

Sheet (2)
B1: known to be uniformly distributed
B2: a | C2: 10
B3: b | C3: 20
B4: f(x) = 1/(b-a) = height | C4: =1/(C3-C2) -> 0.1
A7: a
C8: ="f(x) ="&C4 -> f(x) =0.1
D10: 0 | E10: 1 | F10: 2 | G10: 3 | H10: 4 | I10: 5 | J10: 6 | K10: 7 | L10: 8 | M10: 9 | N10: 10 | O10: 11 | P10: 12 | Q10: 13 | R10: 14 | S10: 15 | T10: 16 | U10: 17 | V10: 18 | W10: 19 | X10: 20 | Y10: 21 | Z10: 22 | AA10: x
A12: b | B12: x1 | C12: =C2 -> 10
B13: x2 | C13: 15
B14: height = | C14: =$C$4 -> 0.1
B15: width = | C15: =C13-C12 -> 5
B16: P(x<15) = P(10<x<15) = P(10<=x<=15) = w*h = | C16: =C15*C14 -> 0.5 | F16: ="** Note: because lines have no area: P("&C12&"<=x<="&C13&")"&" = P("&C12&"<x<"&C13&")" -> ** Note: because lines have no area: P(10<=x<=15) = P(10<x<15)
A18: c | B18: x1 | C18: 12
B19: x2 | C19: 18
B20: height = | C20: =$C$4 -> 0.1
B21: width = | C21: =C19-C18 -> 6
B22: P(12<x<18) = w*h | C22: =C21*C20 -> 0.6 | F22: ="** Note: because lines have no area: P("&C18&"<=x<="&C19&")"&" = P("&C18&"<x<"&C19&")" -> ** Note: because lines have no area: P(12<=x<=18) = P(12<x<18)
A24: d | B24: E(x) = (b+a)/2 | C24: =(C3+C2)/2 -> 15
A25: e | B25: SD = SQRT((b-a)^2/12) | C25: =SQRT((C3-C2)^2/12) -> 2.886751346
B26: Var | C26: =C25^2 -> 8.333333333

Sheet (3)
B1: quoted time = | C1: 125 | D1: min
B2: a | C2: 120 | D2: min
B3: b | C3: 140 | D3: min
B4: height = f(x) = 1/(b-a) | C4: =1/(C3-C2) -> 0.05
A8: a
B9: =B4&" = "&C4 -> height = f(x) = 1/(b-a) = 0.05
D11: 120 | F11: 140 | I11: x
A13: b | B13: x1 | C13: 120
B14: x2 | C14: 130
B15: P(X<=125) | C15: =$C$4*(C14-C13) -> 0.5
A17: c | B17: x1 | C17: 135
B18: x2 | C18: 140
B19: P(X>130) | C19: =$C$4*(C18-C17) -> 0.25
A21: d | B21: E(x) | C21: =(C3+C2)/2 -> 130

Sheet (4)
B1: a | C1: 0
B2: b | C2: 1
B3: f(x) = 1/(1-0) = 1 = height = | C3: =1/(C2-C1) -> 1
A5: a | C5: 2
C6: 1.5
B7: f(x) =1 | C7: 1
C8: 0.5
C9: 0 | D9: 0.25 | E9: 0.5 | F9: 0.75 | G9: 1 | H9: 1.25 | I9: 1.5 | J9: x
A12: b | B12: x1 | C12: 0.25
B13: x2 | C13: 0.75
B14: ="P("&C12&"<=x<="&C13&")" -> P(0.25<=x<=0.75) | C14: =$C$3*(C13-C12) -> 0.5
A16: c | B16: x1 | C16: 0
B17: x2 | C17: 0.3
B18: ="P("&C16&"<=x<="&C17&")" -> P(0<=x<=0.3) | C18: =$C$3*(C17-C16) -> 0.3
A20: d | B20: x3 | C20: 0.6
B21: x4 | C21: 1
B22: ="P("&C20&"<=x<="&C21&")" -> P(0.6<=x<=1) | C22: =$C$3*(C21-C20) -> 0.4
A24: e | B24: E(x) = (a+b)/2 | C24: =(C2-C1)/2 -> 0.5
B25: E(rand) | C25: =AVERAGE(C31:C80) -> 0.5380374504
B26: SD = SQRT((b-a)^2/12) | C26: =SQRT((C2-C1)^2/12) -> 0.2886751346
B27: SD(RAND) POP | C27: =STDEVP(C31:C80) -> 0.2983777494
B28: SD(RAND) Sample | C28: =STDEV(C31:C80) -> 0.3014070427
B30: No | C30: RAND
B31: 1 | C31: =RAND() -> 0.186611777
B32: 2 | C32: 0.1339149407
B33: 3 | C33: 0.8137958789
B34: 4 | C34: 0.002826464083
B35: 5 | C35: 0.7328443345
B36: 6 | C36: 0.485335594
B37: 7 | C37: 0.9341421929
B38: 8 | C38: 0.9839456646
B39: 9 | C39: 0.7603379295
B40: 10 | C40: 0.7892915026
B41: 11 | C41: 0.4828368537
B42: 12 | C42: 0.4487095545
B43: 13 | C43: 0.9417972616
B44: 14 | C44: 0.8920682921
B45: 15 | C45: 0.191147259
B46: 16 | C46: 0.1413980955
B47: 17 | C47: 0.02644511222
B48: 18 | C48: 0.153407218
B49: 19 | C49: 0.6497134129
B50: 20 | C50: 0.7904534348
B51: 21 | C51: 0.6390448504
B52: 22 | C52: 0.8705871509
B53: 23 | C53: 0.3514457353
B54: 24 | C54: 0.6138587783
B55: 25 | C55: 0.5103364264
B56: 26 | C56: 0.2178948371
B57: 27 | C57: 0.7593746933
B58: 28 | C58: 0.8326132192
B59: 29 | C59: 0.7877358719
B60: 30 | C60: 0.7599783689
B61: 31 | C61: 0.06077049153
B62: 32 | C62: 0.170348961
B63: 33 | C63: =RAND() -> 0.3136036467
B64: 34 | C64: 0.6910177813
B65: 35 | C65: 0.658287339
B66: 36 | C66: 0.8806314969
B67: 37 | C67: 0.1176555066
B68: 38 | C68: 0.7750181332
B69: 39 | C69: 0.8650825154
B70: 40 | C70: 0.9287510294
B71: 41 | C71: 0.455515757
B72: 42 | C72: 0.1775096706
B73: 43 | C73: 0.7522115744
B74: 44 | C74: 0.4499198259
B75: 45 | C75: 0.2524184509
B76: 46 | C76: 0.4407095163
B77: 47 | C77: 0.3717246322
B78: 48 | C78: 0.07814924927
B79: 49 | C79: 0.7176991757
B80: 50 | C80: 0.8609550627

Sheet (6)
B1: 30 Minute TV Show Has Actual Show Time Of | C1: 22 | D1: MINUTES
B2: a | C2: 18
B3: b | C3: 26
B4: height = f(x) = 1/(b-a) = | C4: =1/(C3-C2) -> 0.125
A6: a | B6: x1 | C6: 25
B7: x2 | C7: 26
B8: ="P("&C6&"<=x<="&C7&")" -> P(25<=x<=26) | C8: =$C$4*(C7-C6) -> 0.125
A10: b | B10: x1 | C10: 21
B11: x2 | C11: 25
B12: ="P("&C10&"<=x<="&C11&")" -> P(21<=x<=25) | C12: =$C$4*(C11-C10) -> 0.5
A14: c | B14: x1 | C14: 18
B15: x2 | C15: 20
B16: ="P("&C14&"<=x<="&C15&")" -> P(18<=x<=20) | C16: =$C$4*(C15-C14) -> 0.25

Sheet (8,9)

Sheet (12,14)
A1: 12
B2: z1 | C2: z2 | D2: operator | E2: Prob | G2: old Functions
A3: a | B3: 0 | C3: 0.83 | D3: <= | E3: =_xlfn.NORM.S.DIST(C3,1)-_xlfn.NORM.S.DIST(B3,1) -> 0.2967306082 | G3: =NORMSDIST(C3)-NORMSDIST(B3) -> 0.2967306082 | H3: =E3=G3 -> TRUE
A4: b | B4: -1.57 | C4: 0 | D4: <= | E4: =_xlfn.NORM.S.DIST(C4,1)-_xlfn.NORM.S.DIST(B4,1) -> 0.4417924444 | G4: =NORMSDIST(C4)-NORMSDIST(B4) -> 0.4417924444 | H4: TRUE
A5: c | B5: 0.44 | D5: > | E5: =1-_xlfn.NORM.S.DIST(B5,1) -> 0.3299685537 | G5: =1-_xlfn.NORM.S.DIST(B5,1) -> 0.3299685537 | H5: TRUE
A6: d | B6: -0.23 | D6: >= | E6: =1-_xlfn.NORM.S.DIST(B6,1) -> 0.5909541151 | G6: =1-NORMSDIST(B6) -> 0.5909541151 | H6: TRUE
A7: e | B7: 1.2 | D7: < | E7: =_xlfn.NORM.S.DIST(B7,1) -> 0.8849303298 | G7: =NORMSDIST(B7) -> 0.8849303298 | H7: TRUE
A8: f | B8: -0.71 | D8: <= | E8: =_xlfn.NORM.S.DIST(B8,1) -> 0.2388520681 | G8: =NORMSDIST(B8) -> 0.2388520681 | H8: TRUE
A10: 12
B11: Prob | C11: z1 | F11: old Functions
A12: a | B12: 0.975 | C12: =_xlfn.NORM.S.INV(B12) -> 1.959963985 | D12: left of z | F12: =NORMSINV(B12) -> 1.959963985 | G12: =C12=F12 -> TRUE
A13: b | B13: 0.475 | C13: =_xlfn.NORM.S.INV(B13+0.5) -> 1.959963985 | D13: 0 to z | F13: =NORMSINV(B13+0.5) -> 1.959963985 | G13: TRUE
A14: c | B14: 0.7291 | C14: =_xlfn.NORM.S.INV(B14) -> 0.610093307 | D14: left of z | F14: =NORMSINV(B14) -> 0.610093307 | G14: TRUE
A15: d | B15: 0.1314 | C15: =_xlfn.NORM.S.INV(1-B15) -> 1.119797652 | D15: right of z | F15: =NORMSINV(1-B15) -> 1.119797652 | G15: TRUE
A16: e | B16: 0.67 | C16: =_xlfn.NORM.S.INV(B16) -> 0.4399131657 | D16: left of z | F16: =NORMSINV(B16) -> 0.4399131657 | G16: TRUE
A17: f | B17: 0.33 | C17: =_xlfn.NORM.S.INV(1-B17) -> 0.4399131657 | D17: right of z | F17: =NORMSINV(1-B17) -> 0.4399131657 | G17: TRUE

Sheet (17)
A1: Mean debt = | B1: 15015
A2: SD | B2: 3540
A3: z | L3: old functions
C4: x1 | D4: x2 | E4: z | F4: P(x) | G4: P(z) | L4: P(x) | M4: P(z)
A5: a | B5: > | D5: 18000 | E5: =(D5-$B$1)/$B$2 -> 0.843220339 | F5: =1-_xlfn.NORM.DIST(D5,B1,B2,1) -> 0.1995526127 | G5: =1-_xlfn.NORM.S.DIST(E5,1) -> 0.1995526127 | H5: ="It is reasonable to assume that the probability is about "&TEXT(M5,"0%")&" that than debt for a randomly selected borrower with good credit is more the "&DOLLAR(D5)&"." -> It is reasonable to assume that the probability is about 20% that than debt for a randomly selected borrower with good credit is more the $18,000.00. | L5: =1-NORMDIST(D5,$B$1,$B$2,1) -> 0.1995526127 | M5: =1-NORMSDIST(E5) -> 0.1995526127 | N5: =L5=F5 -> TRUE | O5: TRUE
A6: b | B6: < | D6: 10000 | E6: =(D6-$B$1)/$B$2 -> -1.416666667 | F6: =_xlfn.NORM.DIST(D6,B1,B2,1) -> 0.07829020354 | G6: =_xlfn.NORM.S.DIST(E6,1) -> 0.07829020354 | H6: ="It is reasonable to assume that the probability is about "&TEXT(M6,"0%")&" that the debt for a randomly selected borrower with good credit is less than "&DOLLAR(D6)&"." -> It is reasonable to assume that the probability is about 8% that the debt for a randomly selected borrower with good credit is less than $10,000.00. | L6: =NORMDIST(D6,$B$1,$B$2,1) -> 0.07829020354 | M6: =NORMSDIST(E6) -> 0.07829020354 | N6: TRUE | O6: TRUE
A7: c | B7: >= | C7: 12000 | D7: 18000 | F7: =_xlfn.NORM.DIST(D7,$B$1,$B$2,1)-_xlfn.NORM.DIST(C7,B1,B2,1) -> 0.6032556656 | G7: =_xlfn.NORM.S.DIST((D7-B1)/B2,1)-_xlfn.NORM.S.DIST((C7-B1)/B2,1) -> 0.6032556656 | H7: ="It is reasonable to assume that the probability is about "&TEXT(M7,"0%")&" that the debt for a randomly selected borrower with good credit is between "&DOLLAR(C7)&" and "&DOLLAR(D7) -> It is reasonable to assume that the probability is about 60% that the debt for a randomly selected borrower with good credit is between $12,000.00 and $18,000.00 | L7: =NORMDIST(D7,$B$1,$B$2,1)-NORMDIST(C7,B1,B2,1) -> 0.6032556656 | M7: =NORMSDIST((D7-B1)/B2)-NORMSDIST((C7-B1)/B2) -> 0.6032556656 | N7: TRUE | O7: TRUE
A8: d | B8: <= | D8: 14000 | E8: =(D8-$B$1)/$B$2 -> -0.2867231638 | F8: =_xlfn.NORM.DIST(D8,$B$1,$B$2,1) -> 0.3871621499 | G8: =_xlfn.NORM.S.DIST(E8,1) -> 0.3871621499 | H8: ="It is reasonable to assume that the probability is about "&TEXT(M8,"0%")&" that the debt for a randomly selected borrower with good credit is less than or equal to "&DOLLAR(D8)&"." -> It is reasonable to assume that the probability is about 39% that the debt for a randomly selected borrower with good credit is less than or equal to $14,000.00. | L8: =NORMDIST(D8,$B$1,$B$2,1) -> 0.3871621499 | M8: =NORMSDIST(E8) -> 0.3871621499 | N8: TRUE | O8: TRUE
C10: height
B11: x | C11: f(x) | D11: =TRANSPOSE(A5:A8) -> a | E11: b | F11: c | G11: d
B12: 3000 | C12: =NORMDIST(B12,$B$1,$B$2,0) -> 3.551702293e-07 | D12: =IF($B12>$D$5,$C12,"") ->  | E12: =IF($B12<$D$6,$C12,"") -> 3.551702293e-07 | F12: =IF(AND(B12>=$C$7,B12<=$D$7),$C12,"") ->  | G12: =IF($B12<=$D$6,$C12,"") -> 3.551702293e-07
B13: 3010 | C13: =NORMDIST(B13,$B$1,$B$2,0) -> 3.58590463e-07 | D13: =IF(B13>$D$5,C13,"") ->  | E13: 3.58590463e-07 | F13: =IF(AND(B13>=$C$7,B13<=$D$7),$C13,"") ->  | G13: =IF($B13<=$D$6,$C13,"") -> 3.58590463e-07
B14: 3020 | C14: 3.620407441e-07 | E14: 3.620407441e-07 | G14: 3.620407441e-07
B15: 3030 | C15: 3.655213062e-07 | E15: 3.655213062e-07 | G15: 3.655213062e-07
B16: 3040 | C16: 3.690323847e-07 | E16: 3.690323847e-07 | G16: 3.690323847e-07
B17: 3050 | C17: 3.725742163e-07 | E17: 3.725742163e-07 | G17: 3.725742163e-07
B18: 3060 | C18: 3.761470395e-07 | E18: 3.761470395e-07 | G18: 3.761470395e-07
B19: 3070 | C19: 3.797510942e-07 | E19: 3.797510942e-07 | G19: 3.797510942e-07
B20: 3080 | C20: 3.833866217e-07 | E20: 3.833866217e-07 | G20: 3.833866217e-07
B21: 3090 | C21: 3.870538652e-07 | E21: 3.870538652e-07 | G21: 3.870538652e-07
B22: 3100 | C22: 3.907530691e-07 | E22: 3.907530691e-07 | G22: 3.907530691e-07
B23: 3110 | C23: 3.944844796e-07 | E23: 3.944844796e-07 | G23: 3.944844796e-07
B24: 3120 | C24: 3.982483445e-07 | E24: 3.982483445e-07 | G24: 3.982483445e-07
B25: 3130 | C25: 4.020449129e-07 | E25: 4.020449129e-07 | G25: 4.020449129e-07
B26: 3140 | C26: 4.058744359e-07 | E26: 4.058744359e-07 | G26: 4.058744359e-07
B27: 3150 | C27: 4.097371658e-07 | E27: 4.097371658e-07 | G27: 4.097371658e-07
B28: 3160 | C28: 4.136333568e-07 | E28: 4.136333568e-07 | G28: 4.136333568e-07
B29: 3170 | C29: 4.175632647e-07 | E29: 4.175632647e-07 | G29: 4.175632647e-07
B30: 3180 | C30: 4.215271466e-07 | E30: 4.215271466e-07 | G30: 4.215271466e-07
B31: 3190 | C31: 4.255252616e-07 | E31: 4.255252616e-07 | G31: 4.255252616e-07
B32: 3200 | C32: 4.295578702e-07 | E32: 4.295578702e-07 | G32: 4.295578702e-07
B33: 3210 | C33: 4.336252347e-07 | E33: 4.336252347e-07 | G33: 4.336252347e-07
B34: 3220 | C34: 4.37727619e-07 | E34: 4.37727619e-07 | G34: 4.37727619e-07
B35: 3230 | C35: 4.418652885e-07 | E35: 4.418652885e-07 | G35: 4.418652885e-07
B36: 3240 | C36: 4.460385105e-07 | E36: 4.460385105e-07 | G36: 4.460385105e-07
B37: 3250 | C37: 4.502475538e-07 | E37: 4.502475538e-07 | G37: 4.502475538e-07
B38: 3260 | C38: 4.54492689e-07 | E38: 4.54492689e-07 | G38: 4.54492689e-07
B39: 3270 | C39: 4.587741882e-07 | E39: 4.587741882e-07 | G39: 4.587741882e-07
B40: 3280 | C40: 4.630923255e-07 | E40: 4.630923255e-07 | G40: 4.630923255e-07
B41: 3290 | C41: 4.674473763e-07 | E41: 4.674473763e-07 | G41: 4.674473763e-07
B42: 3300 | C42: 4.718396181e-07 | E42: 4.718396181e-07 | G42: 4.718396181e-07
B43: 3310 | C43: 4.762693297e-07 | E43: 4.762693297e-07 | G43: 4.762693297e-07
B44: 3320 | C44: 4.807367921e-07 | E44: 4.807367921e-07 | G44: 4.807367921e-07
B45: 3330 | C45: 4.852422876e-07 | E45: 4.852422876e-07 | G45: 4.852422876e-07
B46: 3340 | C46: 4.897861005e-07 | E46: 4.897861005e-07 | G46: 4.897861005e-07
B47: 3350 | C47: 4.943685167e-07 | E47: 4.943685167e-07 | G47: 4.943685167e-07
B48: 3360 | C48: 4.98989824e-07 | E48: 4.98989824e-07 | G48: 4.98989824e-07
B49: 3370 | C49: 5.036503116e-07 | E49: 5.036503116e-07 | G49: 5.036503116e-07
B50: 3380 | C50: 5.08350271e-07 | E50: 5.08350271e-07 | G50: 5.08350271e-07
B51: 3390 | C51: 5.13089995e-07 | E51: 5.13089995e-07 | G51: 5.13089995e-07
B52: 3400 | C52: 5.178697784e-07 | E52: 5.178697784e-07 | G52: 5.178697784e-07
B53: 3410 | C53: 5.226899177e-07 | E53: 5.226899177e-07 | G53: 5.226899177e-07
B54: 3420 | C54: 5.275507113e-07 | E54: 5.275507113e-07 | G54: 5.275507113e-07
B55: 3430 | C55: 5.324524594e-07 | E55: 5.324524594e-07 | G55: 5.324524594e-07
B56: 3440 | C56: 5.373954638e-07 | E56: 5.373954638e-07 | G56: 5.373954638e-07
B57: 3450 | C57: 5.423800283e-07 | E57: 5.423800283e-07 | G57: 5.423800283e-07
B58: 3460 | C58: 5.474064585e-07 | E58: 5.474064585e-07 | G58: 5.474064585e-07
B59: 3470 | C59: 5.524750617e-07 | E59: 5.524750617e-07 | G59: 5.524750617e-07
B60: 3480 | C60: 5.575861472e-07 | E60: 5.575861472e-07 | G60: 5.575861472e-07
B61: 3490 | C61: 5.62740026e-07 | E61: 5.62740026e-07 | G61: 5.62740026e-07
B62: 3500 | C62: 5.679370112e-07 | E62: 5.679370112e-07 | G62: 5.679370112e-07
B63: 3510 | C63: 5.731774173e-07 | E63: 5.731774173e-07 | G63: 5.731774173e-07
B64: 3520 | C64: 5.784615611e-07 | E64: 5.784615611e-07 | G64: 5.784615611e-07
B65: 3530 | C65: 5.837897611e-07 | E65: 5.837897611e-07 | G65: 5.837897611e-07
B66: 3540 | C66: 5.891623376e-07 | E66: 5.891623376e-07 | G66: 5.891623376e-07
B67: 3550 | C67: 5.945796129e-07 | E67: 5.945796129e-07 | G67: 5.945796129e-07
B68: 3560 | C68: 6.000419111e-07 | E68: 6.000419111e-07 | G68: 6.000419111e-07
B69: 3570 | C69: 6.055495583e-07 | E69: 6.055495583e-07 | G69: 6.055495583e-07
B70: 3580 | C70: 6.111028824e-07 | E70: 6.111028824e-07 | G70: 6.111028824e-07
B71: 3590 | C71: 6.167022132e-07 | E71: 6.167022132e-07 | G71: 6.167022132e-07
B72: 3600 | C72: 6.223478827e-07 | E72: 6.223478827e-07 | G72: 6.223478827e-07
B73: 3610 | C73: 6.280402243e-07 | E73: 6.280402243e-07 | G73: 6.280402243e-07
B74: 3620 | C74: 6.337795738e-07 | E74: 6.337795738e-07 | G74: 6.337795738e-07
B75: 3630 | C75: 6.395662688e-07 | E75: 6.395662688e-07 | G75: 6.395662688e-07
B76: 3640 | C76: 6.454006487e-07 | E76: =IF($B76<$D$6,$C76,"") -> 6.454006487e-07 | G76: 6.454006487e-07
B77: 3650 | C77: =NORMDIST(B77,$B$1,$B$2,0) -> 6.51283055e-07 | D77: =IF(B77>$D$5,C77,"") ->  | E77: 6.51283055e-07 | F77: =IF(AND(B77>=$C$7,B77<=$D$7),$C77,"") ->  | G77: =IF($B77<=$D$6,$C77,"") -> 6.51283055e-07
B78: 3660 | C78: 6.572138311e-07 | E78: 6.572138311e-07 | G78: 6.572138311e-07
B79: 3670 | C79: 6.631933225e-07 | E79: 6.631933225e-07 | G79: 6.631933225e-07
B80: 3680 | C80: 6.692218764e-07 | E80: 6.692218764e-07 | G80: 6.692218764e-07
B81: 3690 | C81: 6.752998422e-07 | E81: 6.752998422e-07 | G81: 6.752998422e-07
B82: 3700 | C82: 6.814275713e-07 | E82: 6.814275713e-07 | G82: 6.814275713e-07
B83: 3710 | C83: 6.876054169e-07 | E83: 6.876054169e-07 | G83: 6.876054169e-07
B84: 3720 | C84: 6.938337343e-07 | E84: 6.938337343e-07 | G84: 6.938337343e-07
B85: 3730 | C85: 7.00112881e-07 | E85: 7.00112881e-07 | G85: 7.00112881e-07
B86: 3740 | C86: 7.064432162e-07 | E86: 7.064432162e-07 | G86: 7.064432162e-07
B87: 3750 | C87: 7.128251012e-07 | E87: 7.128251012e-07 | G87: 7.128251012e-07
B88: 3760 | C88: 7.192588995e-07 | E88: 7.192588995e-07 | G88: 7.192588995e-07
B89: 3770 | C89: 7.257449765e-07 | E89: 7.257449765e-07 | G89: 7.257449765e-07
B90: 3780 | C90: 7.322836996e-07 | E90: 7.322836996e-07 | G90: 7.322836996e-07
B91: 3790 | C91: 7.388754383e-07 | E91: 7.388754383e-07 | G91: 7.388754383e-07
B92: 3800 | C92: 7.455205642e-07 | E92: 7.455205642e-07 | G92: 7.455205642e-07
B93: 3810 | C93: 7.522194508e-07 | E93: 7.522194508e-07 | G93: 7.522194508e-07
B94: 3820 | C94: 7.589724739e-07 | E94: 7.589724739e-07 | G94: 7.589724739e-07
B95: 3830 | C95: 7.657800113e-07 | E95: 7.657800113e-07 | G95: 7.657800113e-07
B96: 3840 | C96: 7.726424426e-07 | E96: 7.726424426e-07 | G96: 7.726424426e-07
B97: 3850 | C97: 7.795601499e-07 | E97: 7.795601499e-07 | G97: 7.795601499e-07
B98: 3860 | C98: 7.865335172e-07 | E98: 7.865335172e-07 | G98: 7.865335172e-07
B99: 3870 | C99: 7.935629305e-07 | E99: 7.935629305e-07 | G99: 7.935629305e-07
B100: 3880 | C100: 8.006487781e-07 | E100: 8.006487781e-07 | G100: 8.006487781e-07
B101: 3890 | C101: 8.077914502e-07 | E101: 8.077914502e-07 | G101: 8.077914502e-07
B102: 3900 | C102: 8.149913394e-07 | E102: 8.149913394e-07 | G102: 8.149913394e-07
B103: 3910 | C103: 8.222488401e-07 | E103: 8.222488401e-07 | G103: 8.222488401e-07
B104: 3920 | C104: 8.295643491e-07 | E104: 8.295643491e-07 | G104: 8.295643491e-07
B105: 3930 | C105: 8.369382652e-07 | E105: 8.369382652e-07 | G105: 8.369382652e-07
B106: 3940 | C106: 8.443709893e-07 | E106: 8.443709893e-07 | G106: 8.443709893e-07
B107: 3950 | C107: 8.518629247e-07 | E107: 8.518629247e-07 | G107: 8.518629247e-07
B108: 3960 | C108: 8.594144764e-07 | E108: 8.594144764e-07 | G108: 8.594144764e-07
B109: 3970 | C109: 8.670260521e-07 | E109: 8.670260521e-07 | G109: 8.670260521e-07
B110: 3980 | C110: 8.746980612e-07 | E110: 8.746980612e-07 | G110: 8.746980612e-07
B111: 3990 | C111: 8.824309155e-07 | E111: 8.824309155e-07 | G111: 8.824309155e-07
B112: 4000 | C112: 8.90225029e-07 | E112: 8.90225029e-07 | G112: 8.90225029e-07
B113: 4010 | C113: 8.980808179e-07 | E113: 8.980808179e-07 | G113: 8.980808179e-07
B114: 4020 | C114: 9.059987004e-07 | E114: 9.059987004e-07 | G114: 9.059987004e-07
B115: 4030 | C115: 9.139790971e-07 | E115: 9.139790971e-07 | G115: 9.139790971e-07
B116: 4040 | C116: 9.220224306e-07 | E116: 9.220224306e-07 | G116: 9.220224306e-07
B117: 4050 | C117: 9.30129126e-07 | E117: 9.30129126e-07 | G117: 9.30129126e-07
B118: 4060 | C118: 9.382996104e-07 | E118: 9.382996104e-07 | G118: 9.382996104e-07
B119: 4070 | C119: 9.465343132e-07 | E119: 9.465343132e-07 | G119: 9.465343132e-07
B120: 4080 | C120: 9.548336658e-07 | E120: 9.548336658e-07 | G120: 9.548336658e-07
B121: 4090 | C121: 9.631981023e-07 | E121: 9.631981023e-07 | G121: 9.631981023e-07
B122: 4100 | C122: 9.716280585e-07 | E122: 9.716280585e-07 | G122: 9.716280585e-07
B123: 4110 | C123: 9.801239729e-07 | E123: 9.801239729e-07 | G123: 9.801239729e-07
B124: 4120 | C124: 9.88686286e-07 | E124: 9.88686286e-07 | G124: 9.88686286e-07
B125: 4130 | C125: 9.973154406e-07 | E125: 9.973154406e-07 | G125: 9.973154406e-07
B126: 4140 | C126: 1.006011882e-06 | E126: 1.006011882e-06 | G126: 1.006011882e-06
B127: 4150 | C127: 1.014776057e-06 | E127: 1.014776057e-06 | G127: 1.014776057e-06
B128: 4160 | C128: 1.023608415e-06 | E128: 1.023608415e-06 | G128: 1.023608415e-06
B129: 4170 | C129: 1.032509409e-06 | E129: 1.032509409e-06 | G129: 1.032509409e-06
B130: 4180 | C130: 1.041479493e-06 | E130: 1.041479493e-06 | G130: 1.041479493e-06
B131: 4190 | C131: 1.050519122e-06 | E131: 1.050519122e-06 | G131: 1.050519122e-06
B132: 4200 | C132: 1.059628756e-06 | E132: 1.059628756e-06 | G132: 1.059628756e-06
B133: 4210 | C133: 1.068808856e-06 | E133: 1.068808856e-06 | G133: 1.068808856e-06
B134: 4220 | C134: 1.078059885e-06 | E134: 1.078059885e-06 | G134: 1.078059885e-06
B135: 4230 | C135: 1.087382309e-06 | E135: 1.087382309e-06 | G135: 1.087382309e-06
B136: 4240 | C136: 1.096776595e-06 | E136: 1.096776595e-06 | G136: 1.096776595e-06
B137: 4250 | C137: 1.106243214e-06 | E137: 1.106243214e-06 | G137: 1.106243214e-06
B138: 4260 | C138: 1.115782639e-06 | E138: 1.115782639e-06 | G138: 1.115782639e-06
B139: 4270 | C139: 1.125395345e-06 | E139: 1.125395345e-06 | G139: 1.125395345e-06
B140: 4280 | C140: 1.135081808e-06 | E140: =IF($B140<$D$6,$C140,"") -> 1.135081808e-06 | G140: 1.135081808e-06
B141: 4290 | C141: =NORMDIST(B141,$B$1,$B$2,0) -> 1.144842508e-06 | D141: =IF(B141>$D$5,C141,"") ->  | E141: 1.144842508e-06 | F141: =IF(AND(B141>=$C$7,B141<=$D$7),$C141,"") ->  | G141: =IF($B141<=$D$6,$C141,"") -> 1.144842508e-06
B142: 4300 | C142: 1.154677927e-06 | E142: 1.154677927e-06 | G142: 1.154677927e-06
B143: 4310 | C143: 1.16458855e-06 | E143: 1.16458855e-06 | G143: 1.16458855e-06
B144: 4320 | C144: 1.174574864e-06 | E144: 1.174574864e-06 | G144: 1.174574864e-06
B145: 4330 | C145: 1.184637356e-06 | E145: 1.184637356e-06 | G145: 1.184637356e-06
B146: 4340 | C146: 1.194776519e-06 | E146: 1.194776519e-06 | G146: 1.194776519e-06
B147: 4350 | C147: 1.204992846e-06 | E147: 1.204992846e-06 | G147: 1.204992846e-06
B148: 4360 | C148: 1.215286833e-06 | E148: 1.215286833e-06 | G148: 1.215286833e-06
B149: 4370 | C149: 1.225658979e-06 | E149: 1.225658979e-06 | G149: 1.225658979e-06
B150: 4380 | C150: 1.236109784e-06 | E150: 1.236109784e-06 | G150: 1.236109784e-06
B151: 4390 | C151: 1.246639752e-06 | E151: 1.246639752e-06 | G151: 1.246639752e-06
B152: 4400 | C152: 1.257249388e-06 | E152: 1.257249388e-06 | G152: 1.257249388e-06
B153: 4410 | C153: 1.267939201e-06 | E153: 1.267939201e-06 | G153: 1.267939201e-06
B154: 4420 | C154: 1.2787097e-06 | E154: 1.2787097e-06 | G154: 1.2787097e-06
B155: 4430 | C155: 1.289561398e-06 | E155: 1.289561398e-06 | G155: 1.289561398e-06
B156: 4440 | C156: 1.300494811e-06 | E156: 1.300494811e-06 | G156: 1.300494811e-06
B157: 4450 | C157: 1.311510457e-06 | E157: 1.311510457e-06 | G157: 1.311510457e-06
B158: 4460 | C158: 1.322608854e-06 | E158: 1.322608854e-06 | G158: 1.322608854e-06
B159: 4470 | C159: 1.333790526e-06 | E159: 1.333790526e-06 | G159: 1.333790526e-06
B160: 4480 | C160: 1.345055997e-06 | E160: 1.345055997e-06 | G160: 1.345055997e-06
B161: 4490 | C161: 1.356405795e-06 | E161: 1.356405795e-06 | G161: 1.356405795e-06
B162: 4500 | C162: 1.367840449e-06 | E162: 1.367840449e-06 | G162: 1.367840449e-06
B163: 4510 | C163: 1.379360491e-06 | E163: 1.379360491e-06 | G163: 1.379360491e-06
B164: 4520 | C164: 1.390966457e-06 | E164: 1.390966457e-06 | G164: 1.390966457e-06
B165: 4530 | C165: 1.402658882e-06 | E165: 1.402658882e-06 | G165: 1.402658882e-06
B166: 4540 | C166: 1.414438306e-06 | E166: 1.414438306e-06 | G166: 1.414438306e-06
B167: 4550 | C167: 1.426305271e-06 | E167: 1.426305271e-06 | G167: 1.426305271e-06
B168: 4560 | C168: 1.438260321e-06 | E168: 1.438260321e-06 | G168: 1.438260321e-06
B169: 4570 | C169: 1.450304004e-06 | E169: 1.450304004e-06 | G169: 1.450304004e-06
B170: 4580 | C170: 1.462436868e-06 | E170: 1.462436868e-06 | G170: 1.462436868e-06
B171: 4590 | C171: 1.474659464e-06 | E171: 1.474659464e-06 | G171: 1.474659464e-06
B172: 4600 | C172: 1.486972347e-06 | E172: 1.486972347e-06 | G172: 1.486972347e-06
B173: 4610 | C173: 1.499376074e-06 | E173: 1.499376074e-06 | G173: 1.499376074e-06
B174: 4620 | C174: 1.511871203e-06 | E174: 1.511871203e-06 | G174: 1.511871203e-06
B175: 4630 | C175: 1.524458296e-06 | E175: 1.524458296e-06 | G175: 1.524458296e-06
B176: 4640 | C176: 1.537137917e-06 | E176: 1.537137917e-06 | G176: 1.537137917e-06
B177: 4650 | C177: 1.549910632e-06 | E177: 1.549910632e-06 | G177: 1.549910632e-06
B178: 4660 | C178: 1.56277701e-06 | E178: 1.56277701e-06 | G178: 1.56277701e-06
B179: 4670 | C179: 1.575737622e-06 | E179: 1.575737622e-06 | G179: 1.575737622e-06
B180: 4680 | C180: 1.588793042e-06 | E180: 1.588793042e-06 | G180: 1.588793042e-06
B181: 4690 | C181: 1.601943847e-06 | E181: 1.601943847e-06 | G181: 1.601943847e-06
B182: 4700 | C182: 1.615190615e-06 | E182: 1.615190615e-06 | G182: 1.615190615e-06
B183: 4710 | C183: 1.628533928e-06 | E183: 1.628533928e-06 | G183: 1.628533928e-06
B184: 4720 | C184: 1.641974369e-06 | E184: 1.641974369e-06 | G184: 1.641974369e-06
B185: 4730 | C185: 1.655512524e-06 | E185: 1.655512524e-06 | G185: 1.655512524e-06
B186: 4740 | C186: 1.669148983e-06 | E186: 1.669148983e-06 | G186: 1.669148983e-06
B187: 4750 | C187: 1.682884336e-06 | E187: 1.682884336e-06 | G187: 1.682884336e-06
B188: 4760 | C188: 1.696719177e-06 | E188: 1.696719177e-06 | G188: 1.696719177e-06
B189: 4770 | C189: 1.710654102e-06 | E189: 1.710654102e-06 | G189: 1.710654102e-06
B190: 4780 | C190: 1.72468971e-06 | E190: 1.72468971e-06 | G190: 1.72468971e-06
B191: 4790 | C191: 1.738826602e-06 | E191: 1.738826602e-06 | G191: 1.738826602e-06
B192: 4800 | C192: 1.753065381e-06 | E192: 1.753065381e-06 | G192: 1.753065381e-06
B193: 4810 | C193: 1.767406655e-06 | E193: 1.767406655e-06 | G193: 1.767406655e-06
B194: 4820 | C194: 1.781851031e-06 | E194: 1.781851031e-06 | G194: 1.781851031e-06
B195: 4830 | C195: 1.79639912e-06 | E195: 1.79639912e-06 | G195: 1.79639912e-06
B196: 4840 | C196: 1.811051537e-06 | E196: 1.811051537e-06 | G196: 1.811051537e-06
B197: 4850 | C197: 1.825808898e-06 | E197: 1.825808898e-06 | G197: 1.825808898e-06
B198: 4860 | C198: 1.84067182e-06 | E198: 1.84067182e-06 | G198: 1.84067182e-06
B199: 4870 | C199: 1.855640926e-06 | E199: 1.855640926e-06 | G199: 1.855640926e-06
B200: 4880 | C200: 1.870716839e-06 | E200: 1.870716839e-06 | G200: 1.870716839e-06
B201: 4890 | C201: 1.885900185e-06 | E201: 1.885900185e-06 | G201: 1.885900185e-06
... 2243 more rows

Sheet (21)
A1: Top part of probability under curve = | B1: 0.02
A2: Mean = | B2: 100
A3: SD = | B3: 15 | E3: old function
A4: What score to qualify? | B4: =_xlfn.NORM.INV(1-B1,B2,B3) -> 130.8062337 | E4: =NORMINV(1-B1,B2,B3) -> 130.8062337 | F4: =E4=B4 -> TRUE

Sheet (23)
A1: Mean | B1: 80 | C1: minutes
A2: sd | B2: 10 | C2: minutes
A4: a
A5: x | B5: 60 | F5: Old Functions
A6: ="P(x<="&B5&")" -> P(x<=60) | B6: =_xlfn.NORM.DIST(B5,B1,B2,1) -> 0.02275013195 | F6: =NORMDIST(B5,B1,B2,1) -> 0.02275013195 | G6: =F6=B6 -> TRUE
A8: b
A9: x1 | B9: 75
A10: x2 | B10: 60
A11: ="P("&B10&"<x<"&B9&")" -> P(60<x<75) | B11: =_xlfn.NORM.DIST(B9,B1,B2,1)-_xlfn.NORM.DIST(B10,B1,B2,1) -> 0.2857874068 | F11: =NORMDIST(B9,B1,B2,1)-NORMDIST(B10,B1,B2,1) -> 0.2857874068 | G11: =F11=B11 -> TRUE
A13: c
A14: # students = | B14: 60
A15: Period = | B15: 90 | C15: minutes
A16: Probability of not finishing | B16: =1-_xlfn.NORM.DIST(B15,B1,B2,1) -> 0.1586552539 | F16: =1-NORMDIST(B15,B1,B2,1) -> 0.1586552539 | G16: =B16=F16 -> TRUE
A17: # students not finish | B17: =B14*B16 -> 9.519315236 | F17: =B14*F16 -> 9.519315236 | G17: TRUE
A18: We would expect about 10 students to not finish

Sheet (24)
A1: Population distribution of trading volume is approximately Normal
A3: Day | B3: Early Morning Trading Volume (000,000) | D3: a | E3: Sample Mean Point Estimate for Pop Mean | F3: =AVERAGE(B4:B16) -> 199.6923077 | M3: Check
A4: Day1 | B4: 214 | E4: Sample SD Point Estimate for Pop SD | F4: =_xlfn.STDEV.S(B4:B16) -> 26.03966403 | M4: =STDEV(B4:B16) -> 26.03966403 | N4: =M4=F4 -> TRUE
A5: Day2 | B5: 202
A6: Day3 | B6: 174 | E6: x | F6: operator | G6: Probability | H6: Written Answer | J6: z | K6: Probability | M6: x | N6: z
A7: Day4 | B7: 163 | D7: b | E7: 180 | F7: < | G7: =_xlfn.NORM.DIST(E7,F3,F4,1) -> 0.2247518265 | H7: ="Assuming that our point estimates are reliable estimators, we can reasonably say that there is a "&TEXT(M7,"0.00%")&" chance that on a randomly selected day the early morning trading volume will be less than "&TEXT(E7*100000,"#,###")&"." -> Assuming that our point estimates are reliable estimators, we can reasonably say that there is a 22.48% chance that on a randomly selected day the early morning trading volume will be less than 18,000,000. | J7: =(E7-$F$3)/$M$4 -> -0.7562427715 | K7: =_xlfn.NORM.S.DIST(J7,1) -> 0.2247518265 | M7: =NORMDIST(E7,$F$3,$M$4,1) -> 0.2247518265 | N7: =NORMSDIST(J7) -> 0.2247518265 | O7: =G7=M7 -> TRUE | P7: =N7=K7 -> TRUE
A8: Day5 | B8: 198 | D8: c | E8: 230 | F8: > | G8: =1-_xlfn.NORM.DIST(E8,F3,F4,1) -> 0.1222312787 | H8: ="Assuming that our point estimates are reliable estimators, we can reasonably say that there is a "&TEXT(M8,"0.00%")&" chance that on a randomly selected day the early morning trading volume will be more than "&TEXT(E8*100000,"#,###")&"." -> Assuming that our point estimates are reliable estimators, we can reasonably say that there is a 12.22% chance that on a randomly selected day the early morning trading volume will be more than 23,000,000. | J8: =(E8-$F$3)/$M$4 -> 1.163904891 | K8: =1-_xlfn.NORM.S.DIST(J8,1) -> 0.1222312787 | M8: =1-NORMDIST(E8,$F$3,$M$4,1) -> 0.1222312787 | N8: =1-NORMSDIST(J8) -> 0.1222312787 | O8: TRUE | P8: TRUE
A9: Day6 | B9: 171 | E9: prob | F9: operator | G9: X | H9: Written Answer | J9: z | K9: Value | M9: X | N9: =K9 -> Value
A10: Day7 | B10: 265 | D10: d | E10: 0.05 | F10: > | G10: =_xlfn.NORM.INV(1-E10,F3,F4) -> 242.5237435 | H10: ="Assuming that our point estimates are reliable estimators, we can reasonably say that "&ROUND(G10,2)&" shares would have to be traded to be amongst the busiest "&TEXT(E10,"0.00%")&"." -> Assuming that our point estimates are reliable estimators, we can reasonably say that 242.52 shares would have to be traded to be amongst the busiest 5.00%. | J10: =NORMSINV(1-E10) -> 1.644853627 | K10: =J10*F4+F3 -> 242.5237435 | M10: =NORMINV(1-E10,F3,M4) -> 242.5237435 | N10: =J10*M4+F3 -> 242.5237435 | O10: =G10=M10 -> TRUE | P10: =N10=K10 -> TRUE
A11: Day8 | B11: 212
A12: Day9 | B12: 211
A13: Day10 | B13: 194
A14: Day11 | B14: 201
A15: Day12 | B15: 211
A16: Day13 | B16: 180

Sheet 22 and 41 and 42
A1: No Answers, but try it yourself (similar to problems in Videos)
A2: This Video:
A3: Excel 2010 Statistics 62: Calculating Probabilities & X Values For Bell Normal Distribution (10 Examples)

Sheet (28)
B1: Wait Time to get through airport security during peak periods
B2: Mean wait time = | C2: 12.1
B3: Assume that distribution is exponential
B4: =B1&CHAR(10)&" "&B2&" = "&C2 -> Wait Time to get through airport security during peak periods Mean wait time = = 12.1
B6: X1 | C6: X2 | D6: Operator | E6: P(x) | F6: P(x) | G6: check
A7: a | B7: 10 | D7: < | E7: ="P(x"&D7&B7&")" -> P(x<10) | F7: =_xlfn.EXPON.DIST(B7,1/$C$2,1) -> 0.5623983604 | G7: =1-EXP(1)^(-B7/$C$2) -> 0.5623983604 | H7: =EXPON.DIST(B7,1/$C$2,1) | K7: or | L7: =1-EXP(1)^(-B7/$C$2)
A8: b | B8: 20 | D8: > | E8: ="P(x"&D8&B8&")" -> P(x>20) | F8: =1-_xlfn.EXPON.DIST(B8,1/$C$2,1) -> 0.191495195 | G8: =EXP(1)^(-B8/C2) -> 0.191495195 | H8: =1-EXPON.DIST(B8,1/$C$2,1) | K8: or | L8: =EXP(1)^(-B8/C2)
A9: c | B9: 10 | C9: 20 | D9: >= | E9: ="P("&B9&D9&" x "&D9&C9&")" -> P(10>= x >=20) | F9: =_xlfn.EXPON.DIST(C9,1/C2,1)-_xlfn.EXPON.DIST(B9,1/C2,1) -> 0.2461064446 | G9: =(1-EXP(1)^(-C9/C2))-(1-EXP(1)^(-B9/C2)) -> 0.2461064446 | H9: =EXPON.DIST(C9,1/C2,1)-EXPON.DIST(B9,1/C2,1) | K9: or | L9: =(1-EXP(1)^(-C9/C2))-(1-EXP(1)^(-B9/C2))
A10: d | B10: Total Time = | C10: 30 | D10: mins
B11: Get to gate after through security Check | C11: 12
B12: Difference | C12: =C10-C11 -> 18 | D12: < | E12: ="P(x"&D12&C12&")" -> P(x<18) | F12: =_xlfn.EXPON.DIST(C12,1/$C$2,1) -> 0.7740865473
E13: P(not make) = | F13: =1-F12 -> 0.2259134527
C14: height | L14: check
B15: x | C15: f(x) | D15: ="X"&D7&B7 -> X<10 | E15: ="X"&D8&B8 -> X>20 | L15: f(x)
B16: 0 | C16: =_xlfn.EXPON.DIST(B16,1/$C$2,0 ) -> 0.0826446281 | D16: =IF($B16<$B$7,$C16,"") -> 0.0826446281 | E16: =IF($B16>$B$8,$C16,"") ->  | L16: =1/$C$2*EXP(1)^(-B16/$C$2) -> 0.0826446281
B17: =B16+0.1 -> 0.1 | C17: =_xlfn.EXPON.DIST(B17,1/$C$2,0 ) -> 0.08196442925 | D17: =IF(B17<$B$7,C17,"") -> 0.08196442925 | E17: =IF($B17>$B$8,$C17,"") ->  | L17: =1/$C$2*EXP(1)^(-B17/$C$2) -> 0.08196442925
B18: =B17+0.1 -> 0.2 | C18: 0.08128982872 | D18: 0.08128982872 | L18: 0.08128982872
B19: 0.3 | C19: 0.08062078043 | D19: 0.08062078043 | L19: 0.08062078043
B20: 0.4 | C20: 0.07995723867 | D20: 0.07995723867 | L20: 0.07995723867
B21: 0.5 | C21: 0.07929915813 | D21: 0.07929915813 | L21: 0.07929915813
B22: 0.6 | C22: 0.07864649386 | D22: 0.07864649386 | L22: 0.07864649386
B23: 0.7 | C23: 0.07799920129 | D23: 0.07799920129 | L23: 0.07799920129
B24: 0.8 | C24: 0.07735723619 | D24: 0.07735723619 | L24: 0.07735723619
B25: 0.9 | C25: 0.07672055473 | D25: 0.07672055473 | L25: 0.07672055473
B26: 1 | C26: 0.07608911341 | D26: 0.07608911341 | L26: 0.07608911341
B27: 1.1 | C27: 0.07546286911 | D27: 0.07546286911 | L27: 0.07546286911
B28: 1.2 | C28: 0.07484177906 | D28: 0.07484177906 | L28: 0.07484177906
B29: 1.3 | C29: 0.07422580083 | D29: 0.07422580083 | L29: 0.07422580083
B30: 1.4 | C30: 0.07361489235 | D30: 0.07361489235 | L30: 0.07361489235
B31: 1.5 | C31: 0.0730090119 | D31: 0.0730090119 | L31: 0.0730090119
B32: 1.6 | C32: 0.07240811809 | D32: 0.07240811809 | L32: 0.07240811809
B33: 1.7 | C33: 0.07181216988 | D33: 0.07181216988 | L33: 0.07181216988
B34: 1.8 | C34: 0.07122112656 | D34: 0.07122112656 | L34: 0.07122112656
B35: 1.9 | C35: 0.07063494777 | D35: 0.07063494777 | L35: 0.07063494777
B36: 2 | C36: 0.07005359347 | D36: 0.07005359347 | L36: 0.07005359347
B37: 2.1 | C37: 0.06947702396 | D37: 0.06947702396 | L37: 0.06947702396
B38: 2.2 | C38: 0.06890519984 | D38: 0.06890519984 | L38: 0.06890519984
B39: 2.3 | C39: 0.06833808207 | D39: 0.06833808207 | L39: 0.06833808207
B40: 2.4 | C40: 0.06777563191 | D40: 0.06777563191 | L40: 0.06777563191
B41: 2.5 | C41: 0.06721781094 | D41: 0.06721781094 | L41: 0.06721781094
B42: 2.6 | C42: 0.06666458106 | D42: 0.06666458106 | L42: 0.06666458106
B43: 2.7 | C43: 0.06611590449 | D43: 0.06611590449 | L43: 0.06611590449
B44: 2.8 | C44: 0.06557174375 | D44: 0.06557174375 | L44: 0.06557174375
B45: 2.9 | C45: 0.06503206168 | D45: 0.06503206168 | L45: 0.06503206168
B46: 3 | C46: 0.06449682141 | D46: 0.06449682141 | L46: 0.06449682141
B47: 3.1 | C47: 0.06396598638 | D47: 0.06396598638 | L47: 0.06396598638
B48: 3.2 | C48: 0.06343952034 | D48: 0.06343952034 | L48: 0.06343952034
B49: 3.3 | C49: 0.06291738733 | D49: 0.06291738733 | L49: 0.06291738733
B50: 3.4 | C50: 0.06239955169 | D50: 0.06239955169 | L50: 0.06239955169
B51: 3.5 | C51: 0.06188597804 | D51: 0.06188597804 | L51: 0.06188597804
B52: 3.6 | C52: 0.06137663131 | D52: 0.06137663131 | L52: 0.06137663131
B53: 3.7 | C53: 0.06087147672 | D53: 0.06087147672 | L53: 0.06087147672
B54: 3.8 | C54: 0.06037047975 | D54: 0.06037047975 | L54: 0.06037047975
B55: 3.9 | C55: 0.05987360619 | D55: 0.05987360619 | L55: 0.05987360619
B56: 4 | C56: 0.0593808221 | D56: 0.0593808221 | L56: 0.0593808221
B57: 4.1 | C57: 0.05889209383 | D57: 0.05889209383 | L57: 0.05889209383
B58: 4.2 | C58: 0.05840738798 | D58: 0.05840738798 | L58: 0.05840738798
B59: 4.3 | C59: 0.05792667146 | D59: 0.05792667146 | L59: 0.05792667146
B60: 4.4 | C60: 0.05744991144 | D60: 0.05744991144 | L60: 0.05744991144
B61: 4.5 | C61: 0.05697707534 | D61: 0.05697707534 | L61: 0.05697707534
B62: 4.6 | C62: 0.05650813088 | D62: 0.05650813088 | L62: 0.05650813088
B63: 4.7 | C63: 0.05604304602 | D63: 0.05604304602 | L63: 0.05604304602
B64: 4.8 | C64: 0.05558178899 | D64: 0.05558178899 | L64: 0.05558178899
B65: 4.9 | C65: 0.0551243283 | D65: 0.0551243283 | L65: 0.0551243283
B66: 5 | C66: 0.0546706327 | D66: 0.0546706327 | L66: 0.0546706327
B67: 5.1 | C67: 0.05422067119 | D67: 0.05422067119 | L67: 0.05422067119
B68: 5.2 | C68: 0.05377441305 | D68: 0.05377441305 | L68: 0.05377441305
B69: 5.3 | C69: 0.0533318278 | D69: 0.0533318278 | L69: 0.0533318278
B70: 5.4 | C70: 0.05289288521 | D70: 0.05289288521 | L70: 0.05289288521
B71: 5.5 | C71: 0.05245755528 | D71: 0.05245755528 | L71: 0.05245755528
B72: 5.6 | C72: 0.05202580831 | D72: 0.05202580831 | L72: 0.05202580831
B73: 5.7 | C73: 0.05159761478 | D73: 0.05159761478 | L73: 0.05159761478
B74: 5.8 | C74: 0.05117294546 | D74: 0.05117294546 | L74: 0.05117294546
B75: 5.9 | C75: 0.05075177134 | D75: 0.05075177134 | L75: 0.05075177134
B76: 6 | C76: 0.05033406366 | D76: 0.05033406366 | L76: 0.05033406366
B77: 6.1 | C77: 0.04991979388 | D77: 0.04991979388 | L77: 0.04991979388
B78: 6.2 | C78: 0.0495089337 | D78: 0.0495089337 | L78: 0.0495089337
B79: 6.3 | C79: 0.04910145508 | D79: 0.04910145508 | L79: 0.04910145508
B80: 6.4 | C80: 0.04869733017 | D80: 0.04869733017 | L80: 0.04869733017
B81: 6.5 | C81: =_xlfn.EXPON.DIST(B81,1/$C$2,0 ) -> 0.04829653137 | D81: =IF(B81<$B$7,C81,"") -> 0.04829653137 | E81: =IF($B81>$B$8,$C81,"") ->  | L81: =1/$C$2*EXP(1)^(-B81/$C$2) -> 0.04829653137
B82: =B81+0.1 -> 6.6 | C82: 0.0478990313 | D82: 0.0478990313 | L82: 0.0478990313
B83: 6.7 | C83: 0.04750480283 | D83: 0.04750480283 | L83: 0.04750480283
B84: 6.8 | C84: 0.04711381901 | D84: 0.04711381901 | L84: 0.04711381901
B85: 6.9 | C85: 0.04672605315 | D85: 0.04672605315 | L85: 0.04672605315
B86: 7 | C86: 0.04634147876 | D86: 0.04634147876 | L86: 0.04634147876
B87: 7.1 | C87: 0.04596006958 | D87: 0.04596006958 | L87: 0.04596006958
B88: 7.2 | C88: 0.04558179955 | D88: 0.04558179955 | L88: 0.04558179955
B89: 7.3 | C89: 0.04520664283 | D89: 0.04520664283 | L89: 0.04520664283
B90: 7.4 | C90: 0.0448345738 | D90: 0.0448345738 | L90: 0.0448345738
B91: 7.5 | C91: 0.04446556706 | D91: 0.04446556706 | L91: 0.04446556706
B92: 7.6 | C92: 0.04409959739 | D92: 0.04409959739 | L92: 0.04409959739
B93: 7.7 | C93: 0.04373663979 | D93: 0.04373663979 | L93: 0.04373663979
B94: 7.8 | C94: 0.04337666949 | D94: 0.04337666949 | L94: 0.04337666949
B95: 7.9 | C95: 0.04301966189 | D95: 0.04301966189 | L95: 0.04301966189
B96: 8 | C96: 0.0426655926 | D96: 0.0426655926 | L96: 0.0426655926
B97: 8.1 | C97: 0.04231443745 | D97: 0.04231443745 | L97: 0.04231443745
B98: 8.2 | C98: 0.04196617245 | D98: 0.04196617245 | L98: 0.04196617245
B99: 8.3 | C99: 0.04162077381 | D99: 0.04162077381 | L99: 0.04162077381
B100: 8.4 | C100: 0.04127821795 | D100: 0.04127821795 | L100: 0.04127821795
B101: 8.5 | C101: 0.04093848145 | D101: 0.04093848145 | L101: 0.04093848145
B102: 8.6 | C102: 0.04060154113 | D102: 0.04060154113 | L102: 0.04060154113
B103: 8.7 | C103: 0.04026737396 | D103: 0.04026737396 | L103: 0.04026737396
B104: 8.8 | C104: 0.03993595712 | D104: 0.03993595712 | L104: 0.03993595712
B105: 8.9 | C105: 0.03960726798 | D105: 0.03960726798 | L105: 0.03960726798
B106: 9 | C106: 0.03928128408 | D106: 0.03928128408 | L106: 0.03928128408
B107: 9.1 | C107: 0.03895798317 | D107: 0.03895798317 | L107: 0.03895798317
B108: 9.2 | C108: 0.03863734315 | D108: 0.03863734315 | L108: 0.03863734315
B109: 9.3 | C109: 0.03831934213 | D109: 0.03831934213 | L109: 0.03831934213
B110: 9.4 | C110: 0.03800395838 | D110: 0.03800395838 | L110: 0.03800395838
B111: 9.5 | C111: 0.03769117037 | D111: 0.03769117037 | L111: 0.03769117037
B112: 9.6 | C112: 0.03738095674 | D112: 0.03738095674 | L112: 0.03738095674
B113: 9.7 | C113: 0.03707329629 | D113: 0.03707329629 | L113: 0.03707329629
B114: 9.8 | C114: 0.03676816801 | D114: 0.03676816801 | L114: 0.03676816801
B115: 9.9 | C115: 0.03646555105 | D115: 0.03646555105 | L115: 0.03646555105
B116: 10 | C116: 0.03616542476 | D116: 0.03616542476 | L116: 0.03616542476
B117: 10.1 | C117: 0.03586776863 | L117: 0.03586776863
B118: 10.2 | C118: 0.03557256233 | L118: 0.03557256233
B119: 10.3 | C119: 0.0352797857 | L119: 0.0352797857
B120: 10.4 | C120: 0.03498941874 | L120: 0.03498941874
B121: 10.5 | C121: 0.03470144162 | L121: 0.03470144162
B122: 10.6 | C122: 0.03441583467 | L122: 0.03441583467
B123: 10.7 | C123: 0.03413257837 | L123: 0.03413257837
B124: 10.8 | C124: 0.03385165339 | L124: 0.03385165339
B125: 10.9 | C125: 0.03357304054 | L125: 0.03357304054
B126: 11 | C126: 0.03329672079 | L126: 0.03329672079
B127: 11.1 | C127: 0.03302267526 | L127: 0.03302267526
B128: 11.2 | C128: 0.03275088523 | L128: 0.03275088523
B129: 11.3 | C129: 0.03248133215 | L129: 0.03248133215
B130: 11.4 | C130: 0.0322139976 | L130: 0.0322139976
B131: 11.5 | C131: 0.03194886332 | L131: 0.03194886332
B132: 11.6 | C132: 0.0316859112 | L132: 0.0316859112
B133: 11.7 | C133: 0.03142512329 | L133: 0.03142512329
B134: 11.8 | C134: 0.03116648176 | L134: 0.03116648176
B135: 11.9 | C135: 0.03090996896 | L135: 0.03090996896
B136: 12 | C136: 0.03065556737 | L136: 0.03065556737
B137: 12.1 | C137: 0.0304032596 | L137: 0.0304032596
B138: 12.2 | C138: 0.03015302843 | L138: 0.03015302843
B139: 12.3 | C139: 0.02990485676 | L139: 0.02990485676
B140: 12.4 | C140: 0.02965872765 | L140: 0.02965872765
B141: 12.5 | C141: 0.02941462428 | L141: 0.02941462428
B142: 12.6 | C142: 0.02917252998 | L142: 0.02917252998
B143: 12.7 | C143: 0.02893242821 | L143: 0.02893242821
B144: 12.8 | C144: 0.02869430258 | L144: 0.02869430258
B145: 12.9 | C145: =_xlfn.EXPON.DIST(B145,1/$C$2,0 ) -> 0.02845813682 | D145: =IF(B145<$B$7,C145,"") ->  | E145: =IF($B145>$B$8,$C145,"") ->  | L145: =1/$C$2*EXP(1)^(-B145/$C$2) -> 0.02845813682
B146: =B145+0.1 -> 13 | C146: 0.0282239148 | L146: 0.0282239148
B147: 13.1 | C147: 0.02799162052 | L147: 0.02799162052
B148: 13.2 | C148: 0.02776123812 | L148: 0.02776123812
B149: 13.3 | C149: 0.02753275186 | L149: 0.02753275186
B150: 13.4 | C150: 0.02730614613 | L150: 0.02730614613
B151: 13.5 | C151: 0.02708140546 | L151: 0.02708140546
B152: 13.6 | C152: 0.0268585145 | L152: 0.0268585145
B153: 13.7 | C153: 0.02663745802 | L153: 0.02663745802
B154: 13.8 | C154: 0.02641822092 | L154: 0.02641822092
B155: 13.9 | C155: 0.02620078824 | L155: 0.02620078824
B156: 14 | C156: 0.02598514511 | L156: 0.02598514511
B157: 14.1 | C157: 0.02577127682 | L157: 0.02577127682
B158: 14.2 | C158: 0.02555916875 | L158: 0.02555916875
B159: 14.3 | C159: 0.02534880641 | L159: 0.02534880641
B160: 14.4 | C160: 0.02514017544 | L160: 0.02514017544
B161: 14.5 | C161: 0.02493326159 | L161: 0.02493326159
B162: 14.6 | C162: 0.02472805072 | L162: 0.02472805072
B163: 14.7 | C163: 0.02452452883 | L163: 0.02452452883
B164: 14.8 | C164: 0.024322682 | L164: 0.024322682
B165: 14.9 | C165: 0.02412249645 | L165: 0.02412249645
B166: 15 | C166: 0.02392395851 | L166: 0.02392395851
B167: 15.1 | C167: 0.02372705462 | L167: 0.02372705462
B168: 15.2 | C168: 0.02353177132 | L168: 0.02353177132
B169: 15.3 | C169: 0.02333809529 | L169: 0.02333809529
B170: 15.4 | C170: 0.02314601329 | L170: 0.02314601329
B171: 15.5 | C171: 0.0229555122 | L171: 0.0229555122
B172: 15.6 | C172: 0.02276657902 | L172: 0.02276657902
B173: 15.7 | C173: 0.02257920083 | L173: 0.02257920083
B174: 15.8 | C174: 0.02239336484 | L174: 0.02239336484
B175: 15.9 | C175: 0.02220905835 | L175: 0.02220905835
B176: 16 | C176: 0.02202626879 | L176: 0.02202626879
B177: 16.1 | C177: 0.02184498365 | L177: 0.02184498365
B178: 16.2 | C178: 0.02166519057 | L178: 0.02166519057
B179: 16.3 | C179: 0.02148687725 | L179: 0.02148687725
B180: 16.4 | C180: 0.02131003153 | L180: 0.02131003153
B181: 16.5 | C181: 0.02113464132 | L181: 0.02113464132
B182: 16.6 | C182: 0.02096069464 | L182: 0.02096069464
B183: 16.7 | C183: 0.02078817961 | L183: 0.02078817961
B184: 16.8 | C184: 0.02061708445 | L184: 0.02061708445
B185: 16.9 | C185: 0.02044739747 | L185: 0.02044739747
B186: 17 | C186: 0.02027910709 | L186: 0.02027910709
B187: 17.1 | C187: 0.02011220181 | L187: 0.02011220181
B188: 17.2 | C188: 0.01994667022 | L188: 0.01994667022
B189: 17.3 | C189: 0.01978250102 | L189: 0.01978250102
B190: 17.4 | C190: 0.01961968301 | L190: 0.01961968301
B191: 17.5 | C191: 0.01945820505 | L191: 0.01945820505
B192: 17.6 | C192: 0.01929805612 | L192: 0.01929805612
B193: 17.7 | C193: 0.01913922529 | L193: 0.01913922529
B194: 17.8 | C194: 0.01898170169 | L194: 0.01898170169
B195: 17.9 | C195: 0.01882547458 | L195: 0.01882547458
B196: 18 | C196: 0.01867053328 | L196: 0.01867053328
B197: 18.1 | C197: 0.01851686721 | L197: 0.01851686721
B198: 18.2 | C198: 0.01836446587 | L198: 0.01836446587
B199: 18.3 | C199: 0.01821331886 | L199: 0.01821331886
B200: 18.4 | C200: 0.01806341585 | L200: 0.01806341585
B201: 18.5 | C201: 0.01791474661 | L201: 0.01791474661
... 347 more rows

Sheet (29)
B1: Follows Exponential Distribution | F1: =B1&CHAR(10)&B2&" = "&C2&" "&D2 -> Follows Exponential Distribution Average time between arrivals at intersection = 12 seconds
B2: Average time between arrivals at intersection | C2: 12 | D2: seconds
B4: X | C4: Operator | D4: P(x) | F4: check
A5: b | B5: 12 | C5: < | D5: =_xlfn.EXPON.DIST(B5,1/$C$2,1) -> 0.6321205588 | F5: =1-EXP(1)^(-B5/$C$2) -> 0.6321205588 | H5: =EXPONDIST(B5,1/$C$2,1) | J5: =1-EXP(1)^(-B5/$C$2)
A6: c | B6: 6 | C6: < | D6: =_xlfn.EXPON.DIST(B6,1/$C$2,1) -> 0.3934693403 | F6: =1-EXP(1)^(-B6/$C$2) -> 0.3934693403 | H6: =EXPONDIST(B6,1/$C$2,1) | J6: =1-EXP(1)^(-B6/$C$2)
A7: d | B7: 30 | C7: > | D7: =1-_xlfn.EXPON.DIST(B7,1/$C$2,1) -> 0.08208499862 | F7: =EXP(1)^(-B7/$C$2) -> 0.08208499862 | H7: =1-EXPONDIST(B7,1/$C$2,1) | J7: =EXP(1)^(-B7/$C$2)
A9: a | C9: height
B10: x | C10: f(x)
B11: 0 | C11: =_xlfn.EXPON.DIST(B11,1/$C$2,0) -> 0.08333333333
B12: =B11+0.1 -> 0.1 | C12: =_xlfn.EXPON.DIST(B12,1/$C$2,0) -> 0.08264177439
B13: =B12+0.1 -> 0.2 | C13: 0.08195595449
B14: 0.3 | C14: 0.081275826
B15: 0.4 | C15: 0.08060134171
B16: 0.5 | C16: 0.07993245476
B17: 0.6 | C17: 0.07926911871
B18: 0.7 | C18: 0.07861128749
B19: 0.8 | C19: 0.07795891542
B20: 0.9 | C20: 0.07731195719
B21: 1 | C21: 0.07667036789
B22: 1.1 | C22: 0.07603410294
B23: 1.2 | C23: 0.07540311817
B24: 1.3 | C24: 0.07477736976
B25: 1.4 | C25: 0.07415681425
B26: 1.5 | C26: 0.07354140855
B27: 1.6 | C27: 0.07293110992
B28: 1.7 | C28: 0.07232587598
B29: 1.8 | C29: 0.0717256647
B30: 1.9 | C30: 0.0711304344
B31: 2 | C31: 0.07054014374
B32: 2.1 | C32: 0.06995475173
B33: 2.2 | C33: 0.06937421772
B34: 2.3 | C34: 0.06879850139
B35: 2.4 | C35: 0.06822756276
B36: 2.5 | C36: 0.06766136218
B37: 2.6 | C37: 0.06709986033
B38: 2.7 | C38: 0.06654301823
B39: 2.8 | C39: 0.06599079719
B40: 2.9 | C40: 0.06544315888
B41: 3 | C41: 0.06490006526
B42: 3.1 | C42: 0.06436147861
B43: 3.2 | C43: 0.06382736153
B44: 3.3 | C44: 0.06329767694
B45: 3.4 | C45: 0.06277238804
B46: 3.5 | C46: 0.06225145836
B47: 3.6 | C47: 0.06173485172
B48: 3.7 | C48: 0.06122253226
B49: 3.8 | C49: 0.06071446438
B50: 3.9 | C50: 0.0602106128
B51: 4 | C51: 0.05971094255
B52: 4.1 | C52: 0.05921541891
B53: 4.2 | C53: 0.05872400748
B54: 4.3 | C54: 0.05823667412
B55: 4.4 | C55: 0.05775338501
B56: 4.5 | C56: 0.05727410657
B57: 4.6 | C57: 0.05679880552
B58: 4.7 | C58: 0.05632744885
B59: 4.8 | C59: 0.05586000384
B60: 4.9 | C60: 0.05539643801
B61: 5 | C61: 0.05493671918
B62: 5.1 | C62: 0.05448081543
B63: 5.2 | C63: 0.05402869508
B64: 5.3 | C64: 0.05358032675
B65: 5.4 | C65: 0.0531356793
B66: 5.5 | C66: 0.05269472185
B67: 5.6 | C67: 0.05225742377
B68: 5.7 | C68: 0.05182375471
B69: 5.8 | C69: 0.05139368453
B70: 5.9 | C70: 0.05096718338
B71: 6 | C71: 0.05054422164
B72: 6.1 | C72: 0.05012476994
B73: 6.2 | C73: 0.04970879914
B74: 6.3 | C74: 0.04929628036
B75: 6.4 | C75: 0.04888718496
B76: 6.5 | C76: =_xlfn.EXPON.DIST(B76,1/$C$2,0) -> 0.04848148452
B77: =B76+0.1 -> 6.6 | C77: 0.04807915087
B78: 6.7 | C78: 0.04768015606
B79: 6.8 | C79: 0.0472844724
B80: 6.9 | C80: 0.0468920724
B81: 7 | C81: 0.04650292881
B82: 7.1 | C82: 0.04611701462
B83: 7.2 | C83: 0.04573430301
B84: 7.3 | C84: 0.04535476741
B85: 7.4 | C85: 0.04497838147
B86: 7.5 | C86: 0.04460511904
B87: 7.6 | C87: 0.04423495421
B88: 7.7 | C88: 0.04386786127
B89: 7.8 | C89: 0.04350381473
B90: 7.9 | C90: 0.0431427893
B91: 8 | C91: 0.04278475992
B92: 8.1 | C92: 0.04242970172
B93: 8.2 | C93: 0.04207759004
B94: 8.3 | C94: 0.04172840043
B95: 8.4 | C95: 0.04138210865
B96: 8.5 | C96: 0.04103869064
B97: 8.6 | C97: 0.04069812256
B98: 8.7 | C98: 0.04036038075
B99: 8.8 | C99: 0.04002544176
B100: 8.9 | C100: 0.03969328233
B101: 9 | C101: 0.0393638794
B102: 9.1 | C102: 0.03903721008
B103: 9.2 | C103: 0.0387132517
B104: 9.3 | C104: 0.03839198175
B105: 9.4 | C105: 0.03807337793
B106: 9.5 | C106: 0.03775741811
B107: 9.6 | C107: 0.03744408034
B108: 9.7 | C108: 0.03713334288
B109: 9.8 | C109: 0.03682518413
B110: 9.9 | C110: 0.03651958271
B111: 10 | C111: 0.03621651738
B112: 10.1 | C112: 0.0359159671
B113: 10.2 | C113: 0.035617911
B114: 10.3 | C114: 0.03532232838
B115: 10.4 | C115: 0.03502919871
B116: 10.5 | C116: 0.03473850164
B117: 10.6 | C117: 0.03445021698
B118: 10.7 | C118: 0.03416432471
B119: 10.8 | C119: 0.03388080498
B120: 10.9 | C120: 0.03359963809
B121: 11 | C121: 0.03332080453
B122: 11.1 | C122: 0.03304428492
B123: 11.2 | C123: 0.03277006007
B124: 11.3 | C124: 0.03249811093
B125: 11.4 | C125: 0.03222841862
B126: 11.5 | C126: 0.03196096441
B127: 11.6 | C127: 0.03169572972
B128: 11.7 | C128: 0.03143269613
B129: 11.8 | C129: 0.03117184538
B130: 11.9 | C130: 0.03091315936
B131: 12 | C131: 0.0306566201
B132: 12.1 | C132: 0.03040220978
B133: 12.2 | C133: 0.03014991074
B134: 12.3 | C134: 0.02989970545
B135: 12.4 | C135: 0.02965157654
B136: 12.5 | C136: 0.02940550679
B137: 12.6 | C137: 0.02916147909
B138: 12.7 | C138: 0.02891947651
B139: 12.8 | C139: 0.02867948224
B140: 12.9 | C140: =_xlfn.EXPON.DIST(B140,1/$C$2,0) -> 0.02844147961
B141: =B140+0.1 -> 13 | C141: 0.02820545209
B142: 13.1 | C142: 0.0279713833
B143: 13.2 | C143: 0.02773925697
B144: 13.3 | C144: 0.027509057
B145: 13.4 | C145: 0.02728076738
B146: 13.5 | C146: 0.02705437228
B147: 13.6 | C147: 0.02682985596
B148: 13.7 | C148: 0.02660720284
B149: 13.8 | C149: 0.02638639745
B150: 13.9 | C150: 0.02616742446
B151: 14 | C151: 0.02595026866
B152: 14.1 | C152: 0.02573491497
B153: 14.2 | C153: 0.02552134845
B154: 14.3 | C154: 0.02530955424
B155: 14.4 | C155: 0.02509951766
B156: 14.5 | C156: 0.02489122411
B157: 14.6 | C157: 0.02468465912
B158: 14.7 | C158: 0.02447980836
B159: 14.8 | C159: 0.02427665759
B160: 14.9 | C160: 0.02407519272
B161: 15 | C161: 0.02387539974
B162: 15.1 | C162: 0.02367726478
B163: 15.2 | C163: 0.02348077409
B164: 15.3 | C164: 0.02328591402
B165: 15.4 | C165: 0.02309267103
B166: 15.5 | C166: 0.02290103171
B167: 15.6 | C167: 0.02271098275
B168: 15.7 | C168: 0.02252251095
B169: 15.8 | C169: 0.02233560323
B170: 15.9 | C170: 0.02215024659
B171: 16 | C171: 0.02196642818
B172: 16.1 | C172: 0.02178413522
B173: 16.2 | C173: 0.02160335505
B174: 16.3 | C174: 0.02142407513
B175: 16.4 | C175: 0.021246283
B176: 16.5 | C176: 0.02106996632
B177: 16.6 | C177: 0.02089511283
B178: 16.7 | C178: 0.02072171041
B179: 16.8 | C179: 0.020549747
B180: 16.9 | C180: 0.02037921066
B181: 17 | C181: 0.02021008955
B182: 17.1 | C182: 0.02004237193
B183: 17.2 | C183: 0.01987604615
B184: 17.3 | C184: 0.01971110066
B185: 17.4 | C185: 0.01954752401
B186: 17.5 | C186: 0.01938530483
B187: 17.6 | C187: 0.01922443185
B188: 17.7 | C188: 0.01906489392
B189: 17.8 | C189: 0.01890667994
B190: 17.9 | C190: 0.01874977894
B191: 18 | C191: 0.01859418001
B192: 18.1 | C192: 0.01843987235
B193: 18.2 | C193: 0.01828684525
B194: 18.3 | C194: 0.01813508807
B195: 18.4 | C195: 0.01798459028
B196: 18.5 | C196: 0.01783534143
B197: 18.6 | C197: 0.01768733115
B198: 18.7 | C198: 0.01754054917
B199: 18.8 | C199: 0.01739498528
B200: 18.9 | C200: 0.01725062939
B201: 19 | C201: 0.01710747146
B202: 19.1 | C202: 0.01696550157
... 426 more rows

Sheet (32)
B1: interruptions at work | C1: 5.5
B2: Time interval | C2: 1 | D2: hour
B4: New Mean | C4: =C1*C6 -> 1.375 | D4: # interuptions
B5: New Time | C5: 15 | D5: minutes
B6: New Time | C6: =C5/60 -> 0.25 | D6: hours
A8: b | B8: Poisson
B9: x | C9: 0 | D9: ="# interruptions per "&C5&" "&D5 -> # interruptions per 15 minutes
B10: ="P(x="&C9&")" -> P(x=0) | C10: =_xlfn.POISSON.DIST(C9,C4,0) -> 0.2528395958
A12: c | B12: Exponetial
B13: Mean | C13: =C5/C4 -> 10.90909091 | D13: Time (minutes) between interuptions
B14: x | C14: 10 | D14: minutes between interuptions
B15: ="P(x<="&C14&")" -> P(x<=10) | C15: =_xlfn.EXPON.DIST(C14,1/C13,1) -> 0.6001503457

Sheet (32.1) (hidden)
A1: Exponential Probability Distribution
A2: Continuous Random Variable
A3: X > = 0
A4: Mean = Standard Deviation
A5: Excel function: EXPON.DIST
A6: EXPON.DIST(x,1/mu, (0 = exact, 1 = cumulative)) | F6: or cumulative function = 1 - e^(-x/mu)
A8: According to a recent study, business people are interrupted 5.5 times per hour. Assume that the distribution follows an Exponetial Distribution
A9: ="Mean for Poisson Distribution = "&B10&" = "&C10&" "&D10&" "&E10&" "&F10 -> Mean for Poisson Distribution = # interruptions = 5.5 per 1 hour
A10: x | B10: # interruptions | C10: 5.5 | D10: per | E10: 1 | F10: hour
E11: 60 | F11: minutes
A12: ="Mean for Exponetial Distribution = "&B13&" = "&C13&" "&D13&" "&E13&" "&F13 -> Mean for Exponetial Distribution = x = Time between interruptions = 0.181818181818182 hours
A13: x | B13: x = Time between interruptions | C13: =E10/C10 -> 0.1818181818 | D13: hours
C14: =C13*E11 -> 10.90909091 | D14: minutes
A16: P(get interrupted in the next 10 minutes)
C17: x1 | D17: x2
C18: 0 | D18: 10 | E18: minutes
B19: ="P(x<"&$D$23&")" -> P(x<15) | C19: =_xlfn.EXPON.DIST(D18,1/$C$14,1) -> 0.6001503457
B20: ="P(x<"&$D$23&")" -> P(x<15) | C20: =1-EXP(1)^(-D18/$C$14) -> 0.6001503457 | I20: 1 - e^(-x/mu)
A21: P(not interruptions during 15 minute)
C22: x1 | D22: x2
C23: 0 | D23: 15 | E23: minutes
B24: ="P(x>"&$D$23&")" -> P(x>15) | C24: =1-_xlfn.EXPON.DIST(D23,1/$C$14,1) -> 0.2528395958
B25: ="P(x>"&$D$23&")" -> P(x>15) | C25: =EXP(1)^(-D23/$C$14) -> 0.2528395958
A27: x (min) | B27: f(x) | C27: ="P(x<"&D18&") = "&TEXT(EXPONDIST(D18,1/$C$14,1),"0.0000") -> P(x<10) = 0.6002 | D27: ="P(x>"&D23&") = "&TEXT(1-EXPONDIST(D23,1/$C$14,1),"0.00%") -> P(x>15) = 25.28% | E27: .
A28: 0 | B28: =EXPONDIST(A28,1/$C$14,0) -> 0.09166666667 | C28: =IF(A28<$D$18,B28,"") -> 0.09166666667 | D28: =IF(A28>$D$23,B28,"") -> 
A29: =A28+0.1 -> 0.1 | B29: =EXPONDIST(A29,1/$C$14,0) -> 0.09083022842 | C29: =IF(A29<$D$18,B29,"") -> 0.09083022842 | D29: =IF(A29>$D$23,B29,"") -> 
A30: =A29+0.1 -> 0.2 | B30: 0.09000142249 | C30: 0.09000142249
A31: 0.3 | B31: 0.08918017923 | C31: 0.08918017923
A32: 0.4 | B32: 0.08836642964 | C32: 0.08836642964
A33: 0.5 | B33: 0.08756010534 | C33: 0.08756010534
A34: 0.6 | B34: 0.08676113856 | C34: 0.08676113856
A35: 0.7 | B35: 0.08596946219 | C35: 0.08596946219
A36: 0.8 | B36: 0.08518500968 | C36: 0.08518500968
A37: 0.9 | B37: 0.08440771514 | C37: 0.08440771514
A38: 1 | B38: 0.08363751323 | C38: 0.08363751323
A39: 1.1 | B39: 0.08287433925 | C39: 0.08287433925
A40: 1.2 | B40: 0.08211812907 | C40: 0.08211812907
A41: 1.3 | B41: 0.08136881914 | C41: 0.08136881914
A42: 1.4 | B42: 0.08062634649 | C42: 0.08062634649
A43: 1.5 | B43: 0.07989064875 | C43: 0.07989064875
A44: 1.6 | B44: 0.07916166409 | C44: 0.07916166409
A45: 1.7 | B45: 0.07843933125 | C45: 0.07843933125
A46: 1.8 | B46: 0.07772358954 | C46: 0.07772358954
A47: 1.9 | B47: 0.07701437882 | C47: 0.07701437882
A48: 2 | B48: 0.07631163949 | C48: 0.07631163949
A49: 2.1 | B49: 0.0756153125 | C49: 0.0756153125
A50: 2.2 | B50: 0.07492533935 | C50: 0.07492533935
A51: 2.3 | B51: 0.07424166204 | C51: 0.07424166204
A52: 2.4 | B52: 0.07356422315 | C52: 0.07356422315
A53: 2.5 | B53: 0.07289296573 | C53: 0.07289296573
A54: 2.6 | B54: 0.07222783339 | C54: 0.07222783339
A55: 2.7 | B55: 0.07156877024 | C55: 0.07156877024
A56: 2.8 | B56: 0.0709157209 | C56: 0.0709157209
A57: 2.9 | B57: 0.07026863048 | C57: 0.07026863048
A58: 3 | B58: 0.06962744463 | C58: 0.06962744463
A59: 3.1 | B59: 0.06899210945 | C59: 0.06899210945
A60: 3.2 | B60: 0.06836257158 | C60: 0.06836257158
A61: 3.3 | B61: 0.06773877809 | C61: 0.06773877809
A62: 3.4 | B62: 0.06712067658 | C62: 0.06712067658
A63: 3.5 | B63: 0.06650821512 | C63: 0.06650821512
A64: 3.6 | B64: 0.06590134223 | C64: 0.06590134223
A65: 3.7 | B65: 0.06530000693 | C65: 0.06530000693
A66: 3.8 | B66: 0.06470415867 | C66: 0.06470415867
A67: 3.9 | B67: 0.0641137474 | C67: 0.0641137474
A68: 4 | B68: 0.06352872351 | C68: 0.06352872351
A69: 4.1 | B69: 0.06294903783 | C69: 0.06294903783
A70: 4.2 | B70: 0.06237464165 | C70: 0.06237464165
A71: 4.3 | B71: 0.06180548672 | C71: 0.06180548672
A72: 4.4 | B72: 0.06124152519 | C72: 0.06124152519
A73: 4.5 | B73: 0.0606827097 | C73: 0.0606827097
A74: 4.6 | B74: 0.06012899327 | C74: 0.06012899327
A75: 4.7 | B75: 0.05958032938 | C75: 0.05958032938
A76: 4.8 | B76: 0.05903667193 | C76: 0.05903667193
A77: 4.9 | B77: 0.05849797524 | C77: 0.05849797524
A78: 5 | B78: 0.05796419403 | C78: 0.05796419403
A79: 5.1 | B79: 0.05743528347 | C79: 0.05743528347
A80: 5.2 | B80: 0.05691119909 | C80: 0.05691119909
A81: 5.3 | B81: 0.05639189687 | C81: 0.05639189687
A82: 5.4 | B82: 0.05587733317 | C82: 0.05587733317
A83: 5.5 | B83: 0.05536746475 | C83: 0.05536746475
A84: 5.6 | B84: 0.05486224877 | C84: 0.05486224877
A85: 5.7 | B85: 0.05436164277 | C85: 0.05436164277
A86: 5.8 | B86: 0.05386560469 | C86: 0.05386560469
A87: 5.9 | B87: 0.05337409285 | C87: 0.05337409285
A88: 6 | B88: 0.05288706595 | C88: 0.05288706595
A89: 6.1 | B89: 0.05240448306 | C89: 0.05240448306
A90: 6.2 | B90: 0.05192630364 | C90: 0.05192630364
A91: 6.3 | B91: 0.0514524875 | C91: 0.0514524875
A92: 6.4 | B92: 0.05098299483 | C92: 0.05098299483
A93: 6.5 | B93: =EXPONDIST(A93,1/$C$14,0) -> 0.05051778617 | C93: =IF(A93<$D$18,B93,"") -> 0.05051778617 | D93: =IF(A93>$D$23,B93,"") -> 
A94: =A93+0.1 -> 6.6 | B94: 0.05005682244 | C94: 0.05005682244
A95: 6.7 | B95: 0.04960006491 | C95: 0.04960006491
A96: 6.8 | B96: 0.04914747518 | C96: 0.04914747518
A97: 6.9 | B97: 0.04869901524 | C97: 0.04869901524
A98: 7 | B98: 0.0482546474 | C98: 0.0482546474
A99: 7.1 | B99: 0.04781433432 | C99: 0.04781433432
A100: 7.2 | B100: 0.047378039 | C100: 0.047378039
A101: 7.3 | B101: 0.04694572477 | C101: 0.04694572477
A102: 7.4 | B102: 0.04651735532 | C102: 0.04651735532
A103: 7.5 | B103: 0.04609289465 | C103: 0.04609289465
A104: 7.6 | B104: 0.04567230708 | C104: 0.04567230708
A105: 7.7 | B105: 0.04525555729 | C105: 0.04525555729
A106: 7.8 | B106: 0.04484261025 | C106: 0.04484261025
A107: 7.9 | B107: 0.04443343126 | C107: 0.04443343126
A108: 8 | B108: 0.04402798593 | C108: 0.04402798593
A109: 8.1 | B109: 0.04362624021 | C109: 0.04362624021
A110: 8.2 | B110: 0.04322816033 | C110: 0.04322816033
A111: 8.3 | B111: 0.04283371284 | C111: 0.04283371284
A112: 8.4 | B112: 0.0424428646 | C112: 0.0424428646
A113: 8.5 | B113: 0.04205558276 | C113: 0.04205558276
A114: 8.6 | B114: 0.04167183478 | C114: 0.04167183478
A115: 8.7 | B115: 0.04129158842 | C115: 0.04129158842
A116: 8.8 | B116: 0.04091481172 | C116: 0.04091481172
A117: 8.9 | B117: 0.04054147303 | C117: 0.04054147303
A118: 9 | B118: 0.04017154098 | C118: 0.04017154098
A119: 9.1 | B119: 0.03980498447 | C119: 0.03980498447
A120: 9.2 | B120: 0.03944177271 | C120: 0.03944177271
A121: 9.3 | B121: 0.03908187517 | C121: 0.03908187517
A122: 9.4 | B122: 0.03872526163 | C122: 0.03872526163
A123: 9.5 | B123: 0.0383719021 | C123: 0.0383719021
A124: 9.6 | B124: 0.0380217669 | C124: 0.0380217669
A125: 9.7 | B125: 0.03767482661 | C125: 0.03767482661
A126: 9.8 | B126: 0.03733105208 | C126: 0.03733105208
A127: 9.9 | B127: 0.03699041441 | C127: 0.03699041441
A128: 10 | B128: 0.03665288498 | C128: 0.03665288498
A129: 10.1 | B129: 0.03631843544
A130: 10.2 | B130: 0.03598703767
A131: 10.3 | B131: 0.03565866384
A132: 10.4 | B132: 0.03533328635
A133: 10.5 | B133: 0.03501087785
A134: 10.6 | B134: 0.03469141126
A135: 10.7 | B135: 0.03437485974
A136: 10.8 | B136: 0.03406119668
A137: 10.9 | B137: 0.03375039572
A138: 11 | B138: 0.03344243076
A139: 11.1 | B139: 0.0331372759
A140: 11.2 | B140: 0.03283490552
A141: 11.3 | B141: 0.03253529421
A142: 11.4 | B142: 0.03223841678
A143: 11.5 | B143: 0.03194424829
A144: 11.6 | B144: 0.03165276402
A145: 11.7 | B145: 0.03136393949
A146: 11.8 | B146: 0.03107775041
A147: 11.9 | B147: 0.03079417275
A148: 12 | B148: 0.03051318267
A149: 12.1 | B149: 0.03023475657
A150: 12.2 | B150: 0.02995887104
A151: 12.3 | B151: 0.02968550291
A152: 12.4 | B152: 0.0294146292
A153: 12.5 | B153: 0.02914622715
A154: 12.6 | B154: 0.02888027422
A155: 12.7 | B155: 0.02861674804
A156: 12.8 | B156: 0.02835562649
A157: 12.9 | B157: =EXPONDIST(A157,1/$C$14,0) -> 0.02809688761 | C157: =IF(A157<$D$18,B157,"") ->  | D157: =IF(A157>$D$23,B157,"") -> 
A158: =A157+0.1 -> 13 | B158: 0.02784050967
A159: 13.1 | B159: 0.02758647112
A160: 13.2 | B160: 0.02733475061
A161: 13.3 | B161: 0.02708532701
A162: 13.4 | B162: 0.02683817933
A163: 13.5 | B163: 0.02659328683
A164: 13.6 | B164: 0.02635062891
A165: 13.7 | B165: 0.0261101852
A166: 13.8 | B166: 0.02587193548
A167: 13.9 | B167: 0.02563585974
A168: 14 | B168: 0.02540193814
A169: 14.1 | B169: 0.02517015102
A170: 14.2 | B170: 0.0249404789
A171: 14.3 | B171: 0.0247129025
A172: 14.4 | B172: 0.02448740268
A173: 14.5 | B173: 0.0242639605
A174: 14.6 | B174: 0.02404255717
A175: 14.7 | B175: 0.02382317411
A176: 14.8 | B176: 0.02360579287
A177: 14.9 | B177: 0.02339039518
A178: 15 | B178: 0.02317696295
A179: 15.1 | B179: 0.02296547824 | D179: 0.02296547824
A180: 15.2 | B180: 0.02275592328 | D180: 0.02275592328
A181: 15.3 | B181: 0.02254828047 | D181: 0.02254828047
A182: 15.4 | B182: 0.02234253235 | D182: 0.02234253235
A183: 15.5 | B183: 0.02213866164 | D183: 0.02213866164
A184: 15.6 | B184: 0.02193665121 | D184: 0.02193665121
A185: 15.7 | B185: 0.02173648407 | D185: 0.02173648407
A186: 15.8 | B186: 0.02153814342 | D186: 0.02153814342
A187: 15.9 | B187: 0.02134161258 | D187: 0.02134161258
A188: 16 | B188: 0.02114687504 | D188: 0.02114687504
A189: 16.1 | B189: 0.02095391444 | D189: 0.02095391444
A190: 16.2 | B190: 0.02076271456 | D190: 0.02076271456
A191: 16.3 | B191: 0.02057325934 | D191: 0.02057325934
A192: 16.4 | B192: 0.02038553286 | D192: 0.02038553286
A193: 16.5 | B193: 0.02019951934 | D193: 0.02019951934
A194: 16.6 | B194: 0.02001520315 | D194: 0.02001520315
A195: 16.7 | B195: 0.01983256881 | D195: 0.01983256881
A196: 16.8 | B196: 0.01965160096 | D196: 0.01965160096
A197: 16.9 | B197: 0.01947228441 | D197: 0.01947228441
A198: 17 | B198: 0.01929460408 | D198: 0.01929460408
A199: 17.1 | B199: 0.01911854505 | D199: 0.01911854505
A200: 17.2 | B200: 0.01894409252 | D200: 0.01894409252
A201: 17.3 | B201: 0.01877123182 | D201: 0.01877123182
A202: 17.4 | B202: 0.01859994845 | D202: 0.01859994845
A203: 17.5 | B203: 0.01843022799 | D203: 0.01843022799
... 325 more rows

Sheet (32.2) (hidden)
A1: Relationship between Poisson and Exponential Poisson is # of occurrences during per Interval Exponential is length between occurrences If occurrences follow a Poisson Distr., the length between occurrences must follow an Exponential Distribution | M1: Poisson Probability Distribution can be used to estimate the number of occurrences over a specified interval of time or space | R1: Exponential Probability Distribution can be used to estimate the length of the interval between occurrences (time or space)
A2: ="Mean for Poisson Distribution = "&B3&" = "&C3&" "&D3&" "&E3&" "&F3 -> Mean for Poisson Distribution = # interruptions = 5.5 per 1 hour | M2: Discrete Random Variable | R2: Continuous Random Variable
A3: x | B3: # interruptions | C3: ='(32.1)'!C10 -> 5.5 | D3: per | E3: 1 | F3: hour | M3: Properties of a Poisson Experiment: | R3: X > = 0
E4: 60 | F4: minutes | M4: The probability of an occurrence is the same for any two intervals of equal length | R4: Mean = Standard Deviation
A5: ="Mean for Exponetial Distribution = "&B6&" = "&C6&" "&D6&" "&E6&" "&F6 -> Mean for Exponetial Distribution = Time between interruptions = 0.181818181818182 hours | M5: The occurrence or nonoccurrence in any interval is independent of the occurrence or nonoccurrence in any other interval | R5: Excel function: EXPONDIST
A6: x | B6: Time between interruptions | C6: =E3/C3 -> 0.1818181818 | D6: hours | M6: No upper limit for X: 0,1,2,3… , but as x increases past the mean, the probability decreases and gets quite small. | R6: EXPONDIST(x,1/mu, (0 = exact, 1 = cumulative))
C7: =C6*$E$4 -> 10.90909091 | D7: minutes | M7: Mean = Var
M8: Excel function: POISSON
A9: P(no interruptions during 15 minute period 0 to 15) | M9: POISSON(x,mean,cumulative (0 = exact, 1 = cumulative))
C11: x1 | D11: x2
C12: 0 | D12: 15 | E12: minutes
B13: ="P(x<"&$D$12&")" -> P(x<15) | C13: =1-_xlfn.EXPON.DIST(D12,1/C7,1) -> 0.2528395958 | D13: Exponential, x = time between occurrences
B15: x = | C15: 0 | D15: # of occurrences
B16: Time = | C16: =D12/E4 -> 0.25
B17: ="Mean = # occurrences per "&D12&" "&E12 -> Mean = # occurrences per 15 minutes | C17: =C16*C3 -> 1.375
B18: ="P(x<"&C15&")" -> P(x<0) | C18: =_xlfn.POISSON.DIST(C15,C17,0) -> 0.2528395958 | D18: Poisson, x = # of occurrences

Sheet Sheet6 (hidden)
